[Event "RUS-ch Men Blitz 2019"]
[Site "Sochi"]
[Date "2019.10.17"]
[Round "4.16"]
[White "Tsydypov, Zhamsaran"]
[Black "Shcherbin, Matvei"]
[Result "1-0"]
[ECO "B40"]
[WhiteElo "2553"]
[BlackElo "2366"]
[Annotator "ChessBase"]
[PlyCount "53"]
[EventDate "2019.10.17"]
[EventType "swiss"]
[EventCountry "RUS"]
[SourceTitle "playchess.com"]
[Source "ChessBase"]
[SourceQuality "1"]
[TimeControl "180+2"]

1. e4 c5 2. Nf3 {[%emt 0:00:01]} e6 {[%emt 0:00:00]} 3. d4 {[%emt 0:00:01]} cxd4 {[%emt 0:00:00]} 4. Nxd4 {[%emt 0:00:01]} Bc5 {[%emt 0:00:00]} 5. Nb3 {[%emt 0:00:09]} Bb6 {[%emt 0:00:01]} 6. Bd3 {[%emt 0:00:07]} Ne7 {[%emt 0:00:01]} 7. O-O {[%emt 0:00:03]} O-O {[%emt 0:00:01]} 8. c4 {[%emt 0:00:03]} d6 {[%emt 0:00:02]} 9. Nc3 {[%emt 0:00:03]} Nbc6 {[%emt 0:00:01]} 10. Bf4 {[%emt 0:00:24]} f5 {[%emt 0:00:01]} 11. exf5 {[%emt 0:00:03]} Nxf5 {[%emt 0:00:01]} 12. Bxf5 {[%emt 0:00:06]} Rxf5 {[%emt 0:00:04]} 13. Bxd6 {[%emt 0:00:06]} Bd7 {[%emt 0:00:42]} 14. c5 {[%emt 0:00:02]} Bc7 {[%emt 0:00:01]} 15. Bxc7 {[%emt 0:00:02]} Qxc7 {[%emt 0:00:01]} 16. Nb5 {[%emt 0:00:01]} Qd8 {[%emt 0:00:11]} 17. Nd6 {[%emt 0:00:01]} Rd5 {[%emt 0:00:04]} 18. Qf3 {[%emt 0:00:16]} Ne5 {[%emt 0:00:01]} 19. Qg3 {[%emt 0:00:01]} b6 {[%emt 0:00:05]} 20. Rad1 {[%emt 0:00:10]} Ng6 {[%emt 0:00:58]} 21. Rxd5 {[%emt 0:00:02]} exd5 {[%emt 0:00:01]} 22. Qf3 {[%emt 0:00:01]} Be6 {[%emt 0:00:10]} 23. Re1 {[%emt 0:00:01]} Nf8 {[%emt 0:00:04]} 24. Rxe6 {[%emt 0:00:05]} Nxe6 {[%emt 0:00:01]} 25. Qf7+ {[%emt 0:00:01]} Kh8 {[%emt 0:00:01]} 26. Qxe6 {[%emt 0:00:01]} bxc5 27. Nf7+ 1-0

[Event "RUS-ch Men Blitz 2019"]
[Site "Sochi"]
[Date "2019.10.20"]
[Round "4.16"]
[White "Garifullina, Leya"]
[Black "Faizrakhmanov, Ramil"]
[Result "1/2-1/2"]
[ECO "B12"]
[WhiteElo "2240"]
[BlackElo "2434"]
[Annotator "NA"]
[PlyCount "295"]
[EventDate "2019.10.17"]
[EventType "swiss"]
[EventCountry "RUS"]
[SourceTitle "playchess.com"]
[Source "ChessBase"]
[SourceQuality "1"]
[TimeControl "180+2"]

1. e4 {[%emt 0:00:00]} c6 {[%emt 0:00:00]} 2. d4 {[%emt 0:00:01]} d5 {[%emt 0:00:00]} 3. e5 {[%emt 0:00:00]} Bf5 {[%emt 0:00:01]} 4. h4 {[%emt 0:00:01]} h5 {[%emt 0:00:01]} 5. c4 {[%emt 0:00:01]} e6 {[%emt 0:00:00]} 6. Ne2 {[%emt 0:00:02]} Ne7 {[%emt 0:00:07]} 7. Ng3 {[%emt 0:00:04]} Bg6 {[%emt 0:00:01]} 8. Nc3 {[%emt 0:00:06]} Nd7 {[%emt 0:00:01]} 9. cxd5 {[%emt 0:00:07]} Nxd5 {[%emt 0:00:02]} 10. Nxd5 {[%emt 0:00:15]} cxd5 {[%emt 0:00:01]} 11. Be2 {[%emt 0:00:13]} Be7 {[%emt 0:00:16]} 12. Nxh5 {[%emt 0:00:09]} Bxh5 {[%emt 0:00:06]} 13. Bxh5 {[%emt 0:00:03]} g6 {[%emt 0:00:02]} 14. Be2 {[%emt 0:00:03]} Rxh4 {[%emt 0:00:03]} 15. Rxh4 {[%emt 0:00:02]} Bxh4 {[%emt 0:00:02]} 16. g3 {[%emt 0:00:15]} Be7 {[%emt 0:00:01]} 17. Qa4 {[%emt 0:00:03]} a6 {[%emt 0:00:07]} 18. Bd2 {[%emt 0:00:06]} Rc8 {[%emt 0:00:12]} 19. Bc3 {[%emt 0:00:11]} Kf8 {[%emt 0:00:16]} 20. Kf1 {[%emt 0:00:03]} Kg7 {[%emt 0:00:07]} 21. Kg2 {[%emt 0:00:01]} Nb6 {[%emt 0:00:15]} 22. Qb3 {[%emt 0:00:02]} Qc7 {[%emt 0:00:28]} 23. Ba5 {[%emt 0:00:08]} Qc2 {[%emt 0:00:01]} 24. Qe3 {[%emt 0:00:08]} Nc4 {[%emt 0:00:05]} 25. Bxc4 {[%emt 0:00:03]} Rxc4 {[%emt 0:00:01]} 26. Rh1 {[%emt 0:00:19]} Qe4+ {[%emt 0:00:02]} 27. Qxe4 {[%emt 0:00:05]} dxe4 {[%emt 0:00:02]} 28. Rd1 {[%emt 0:00:16]} Ra4 {[%emt 0:00:11]} 29. Bc3 {[%emt 0:00:03]} Rxa2 {[%emt 0:00:02]} 30. d5 {[%emt 0:00:01]} exd5 {[%emt 0:00:07]} 31. Rxd5 {[%emt 0:00:01]} Kg8 {[%emt 0:00:14]} 32. Rd7 {[%emt 0:00:04]} Bg5 {[%emt 0:00:16]} 33. Rxb7 {[%emt 0:00:05]} Kf8 {[%emt 0:00:20]} 34. Rb4 {[%emt 0:00:07]} e3 {[%emt 0:00:04]} 35. f4 {[%emt 0:00:00]} Be7 {[%emt 0:00:04]} 36. Rb8+ {[%emt 0:00:02]} Kg7 {[%emt 0:00:01]} 37. Kf3 {[%emt 0:00:01]} a5 {[%emt 0:00:08]} 38. Kxe3 {[%emt 0:00:11]} a4 {[%emt 0:00:01]} 39. Rb7 {[%emt 0:00:10]} Kf8 {[%emt 0:00:01]} 40. Rb8+ {[%emt 0:00:11]} Kg7 {[%emt 0:00:00]} 41. Re8 {[%emt 0:00:05]} Bc5+ {[%emt 0:00:06]} 42. Ke4 {[%emt 0:00:03]} a3 {[%emt 0:00:05]} 43. e6+ {[%emt 0:00:03]} f6 {[%emt 0:00:01]} 44. Rc8 {[%emt 0:00:07]} Be7 {[%emt 0:00:05]} 45. Rc7 {[%emt 0:00:03]} Kf8 {[%emt 0:00:01]} 46. bxa3 {[%emt 0:00:02]} Rxa3 {[%emt 0:00:02]} 47. Rxe7 {[%emt 0:00:01]} Ra4+ {[%emt 0:00:01]} 48. Kd5 {[%emt 0:00:10]} Kxe7 {[%emt 0:00:01]} 49. Bd2 {[%emt 0:00:02]} Ra2 {[%emt 0:00:19]} 50. Bb4+ {[%emt 0:00:01]} Ke8 {[%emt 0:00:01]} 51. g4 {[%emt 0:00:04]} Re2 {[%emt 0:00:01]} 52. f5 {[%emt 0:00:04]} gxf5 {[%emt 0:00:01]} 53. gxf5 {[%emt 0:00:01]} Re5+ {[%emt 0:00:01]} 54. Kd6 {[%emt 0:00:08]} Rxf5 {[%emt 0:00:01]} 55. e7 {[%emt 0:00:03]} Rf4 {[%emt 0:00:01]} 56. Bc3 {[%emt 0:00:02]} f5 {[%emt 0:00:03]} 57. Ke5 {[%emt 0:00:01]} Rf1 {[%emt 0:00:02]} 58. Bb4 {[%emt 0:00:02]} Kf7 {[%emt 0:00:06]} 59. Ba3 {[%emt 0:00:03]} f4 {[%emt 0:00:06]} 60. Ke4 {[%emt 0:00:03]} f3 {[%emt 0:00:00]} 61. Bc5 {[%emt 0:00:04]} Ke8 {[%emt 0:00:06]} 62. Kf4 {[%emt 0:00:03]} f2 {[%emt 0:00:02]} 63. Kf3 {[%emt 0:00:03]} Rc1 {[%emt 0:00:02]} 64. Bxf2 {[%emt 0:00:01]} Kxe7 {[%emt 0:00:00]} 65. Be3 {[%emt 0:00:01]} Rc3 {[%emt 0:00:01]} 66. Ke2 {[%emt 0:00:02]} Ke6 {[%emt 0:00:01]} 67. Bf2 {[%emt 0:00:00]} Kd5 {[%emt 0:00:01]} 68. Kf1 {[%emt 0:00:01]} Ke4 {[%emt 0:00:00]} 69. Kg1 {[%emt 0:00:02]} Kf3 {[%emt 0:00:01]} 70. Ba7 {[%emt 0:00:02]} Rc1+ {[%emt 0:00:02]} 71. Kh2 {[%emt 0:00:01]} Rc7 {[%emt 0:00:01]} 72. Bb6 {[%emt 0:00:01]} Rb7 {[%emt 0:00:01]} 73. Bc5 {[%emt 0:00:02]} Rh7+ {[%emt 0:00:01]} 74. Kg1 {[%emt 0:00:00]} Rh5 {[%emt 0:00:01]} 75. Bb6 {[%emt 0:00:02]} Kg3 {[%emt 0:00:01]} 76. Bc7+ {[%emt 0:00:01]} Kf3 {[%emt 0:00:01]} 77. Bb6 {[%emt 0:00:01]} Rh7 {[%emt 0:00:01]} 78. Bc5 {[%emt 0:00:02]} Rh5 {[%emt 0:00:01]} 79. Bb6 {[%emt 0:00:01]} Rg5+ {[%emt 0:00:01]} 80. Kh2 {[%emt 0:00:01]} Rg2+ {[%emt 0:00:02]} 81. Kh1 {[%emt 0:00:01]} Rc2 {[%emt 0:00:00]} 82. Ba7 {[%emt 0:00:01]} Rb2 {[%emt 0:00:01]} 83. Bc5 {[%emt 0:00:02]} Kg3 {[%emt 0:00:02]} 84. Bd6+ {[%emt 0:00:01]} Kh3 {[%emt 0:00:01]} 85. Bc5 {[%emt 0:00:00]} Rc2 {[%emt 0:00:02]} 86. Bb6 {[%emt 0:00:01]} Rh2+ {[%emt 0:00:01]} 87. Kg1 {[%emt 0:00:01]} Rb2 {[%emt 0:00:02]} 88. Bc7 {[%emt 0:00:04]} Kg4 {[%emt 0:00:02]} 89. Bd6 {[%emt 0:00:03]} Kf3 {[%emt 0:00:01]} 90. Bc5 {[%emt 0:00:01]} Rc2 {[%emt 0:00:02]} 91. Ba7 {[%emt 0:00:01]} Rg2+ {[%emt 0:00:01]} 92. Kh1 {[%emt 0:00:00]} Rg4 {[%emt 0:00:00]} 93. Bb6 {[%emt 0:00:04]} Rg7 {[%emt 0:00:01]} 94. Bc5 {[%emt 0:00:01]} Rg8 {[%emt 0:00:01]} 95. Bb6 {[%emt 0:00:01]} Ke2 {[%emt 0:00:01]} 96. Bc5 {[%emt 0:00:02]} Kf1 {[%emt 0:00:01]} 97. Bd6 {[%emt 0:00:02]} Rg4 {[%emt 0:00:02]} 98. Bc7 {[%emt 0:00:03]} Rg2 {[%emt 0:00:01]} 99. Bh2 {[%emt 0:00:01]} Rg7 {[%emt 0:00:02]} 100. Bb8 {[%emt 0:00:03]} Rg5 {[%emt 0:00:01]} 101. Bc7 {[%emt 0:00:01]} Rc5 {[%emt 0:00:01]} 102. Bd6 {[%emt 0:00:01]} Rc8 {[%emt 0:00:01]} 103. Be5 {[%emt 0:00:01]} Kf2 {[%emt 0:00:01]} 104. Bd4+ {[%emt 0:00:02]} Kf3 {[%emt 0:00:01]} 105. Bb6 {[%emt 0:00:04]} Rb8 {[%emt 0:00:01]} 106. Bc5 {[%emt 0:00:01]} Rg8 {[%emt 0:00:00]} 107. Bb6 {[%emt 0:00:02]} Kg3 {[%emt 0:00:01]} 108. Bc7+ {[%emt 0:00:01]} Kf2 {[%emt 0:00:01]} 109. Bb6+ {[%emt 0:00:02]} Kf3 {[%emt 0:00:01]} 110. Bc5 {[%emt 0:00:01]} Rg7 {[%emt 0:00:00]} 111. Bd4 {[%emt 0:00:03]} Rh7+ {[%emt 0:00:01]} 112. Kg1 {[%emt 0:00:01]} Rd7 {[%emt 0:00:00]} 113. Bb6 {[%emt 0:00:01]} Kg3 {[%emt 0:00:01]} 114. Bf2+ {[%emt 0:00:03]} Kf3 {[%emt 0:00:02]} 115. Bb6 {[%emt 0:00:01]} Rd6 {[%emt 0:00:01]} 116. Ba7 {[%emt 0:00:01]} Rg6+ {[%emt 0:00:01]} 117. Kh1 {[%emt 0:00:01]} Rg8 {[%emt 0:00:01]} 118. Bb6 Rh8+ 119. Kg1 {[%emt 0:00:02]} Rh7 {[%emt 0:00:01]} 120. Bc5 {[%emt 0:00:02]} Rh5 {[%emt 0:00:01]} 121. Bb6 {[%emt 0:00:01]} Rh6 {[%emt 0:00:01]} 122. Ba7 {[%emt 0:00:01]} Rh7 {[%emt 0:00:02]} 123. Bc5 {[%emt 0:00:02]} Rd7 {[%emt 0:00:02]} 124. Kh2 {[%emt 0:00:03]} Rd5 {[%emt 0:00:02]} 125. Bb6 {[%emt 0:00:01]} Kg4 {[%emt 0:00:02]} 126. Ba7 {[%emt 0:00:03]} Rd2+ {[%emt 0:00:00]} 127. Kh1 {[%emt 0:00:01]} Kg3 {[%emt 0:00:03]} 128. Bb8+ {[%emt 0:00:02]} Kh3 {[%emt 0:00:00]} 129. Ba7 {[%emt 0:00:01]} Rh2+ {[%emt 0:00:01]} 130. Kg1 {[%emt 0:00:00]} Ra2 {[%emt 0:00:02]} 131. Bb8 {[%emt 0:00:03]} Ra1+ {[%emt 0:00:01]} 132. Kf2 {[%emt 0:00:00]} Kg4 {[%emt 0:00:01]} 133. Kg2 {[%emt 0:00:01]} Rb1 {[%emt 0:00:01]} 134. Ba7 {[%emt 0:00:02]} Rb2+ {[%emt 0:00:02]} 135. Kh1 {[%emt 0:00:00]} Kg3 {[%emt 0:00:00]} 136. Bg1 {[%emt 0:00:04]} Rb7 {[%emt 0:00:03]} 137. Bc5 {[%emt 0:00:02]} Rh7+ {[%emt 0:00:01]} 138. Kg1 {[%emt 0:00:01]} Rd7 {[%emt 0:00:01]} 139. Bf2+ {[%emt 0:00:02]} Kf3 {[%emt 0:00:01]} 140. Bb6 {[%emt 0:00:01]} Rd5 {[%emt 0:00:01]} 141. Ba7 {[%emt 0:00:02]} Rd6 {[%emt 0:00:02]} 142. Bc5 {[%emt 0:00:01]} Rg6+ {[%emt 0:00:01]} 143. Kh1 {[%emt 0:00:01]} Rg5 {[%emt 0:00:01]} 144. Bb6 {[%emt 0:00:01]} Kg3 {[%emt 0:00:01]} 145. Bc7+ {[%emt 0:00:01]} Kf2 {[%emt 0:00:01]} 146. Bb6+ {[%emt 0:00:01]} Kf1 {[%emt 0:00:01]} 147. Bc7 {[%emt 0:00:01]} Rg6 {[%emt 0:00:01]} 148. Bb8 {[%emt 0:00:01]} 1/2-1/2

[Event "RUS-ch Men Blitz 2019"]
[Site "Sochi"]
[Date "2019.10.17"]
[Round "4.17"]
[White "Shimanov, Aleksandr"]
[Black "Remizov, Yaroslav"]
[Result "1-0"]
[ECO "D00"]
[WhiteElo "2587"]
[BlackElo "2394"]
[Annotator "ChessBase"]
[PlyCount "75"]
[EventDate "2019.10.17"]
[EventType "swiss"]
[EventCountry "RUS"]
[SourceTitle "playchess.com"]
[Source "ChessBase"]
[SourceQuality "1"]
[TimeControl "180+2"]

1. d4 {[%emt 0:00:00]} d5 {[%emt 0:00:00]} 2. Bf4 {[%emt 0:00:02]} c5 {[%emt 0:00:00]} 3. e3 {[%emt 0:00:01]} Nf6 {[%emt 0:00:01]} 4. Nf3 {[%emt 0:00:09]} Nc6 {[%emt 0:00:06]} 5. Nbd2 {[%emt 0:00:01]} Bf5 {[%emt 0:00:18]} 6. c3 {[%emt 0:00:03]} e6 {[%emt 0:00:21]} 7. Qb3 {[%emt 0:00:01]} Qb6 {[%emt 0:00:06]} 8. Qxb6 {[%emt 0:00:02]} axb6 9. Bb5 {[%emt 0:00:01]} Nd7 {[%emt 0:00:19]} 10. Nh4 {[%emt 0:00:14]} Bc2 {[%emt 0:00:22]} 11. O-O {[%emt 0:00:14]} Be7 {[%emt 0:00:05]} 12. Nhf3 {[%emt 0:00:01]} O-O {[%emt 0:00:15]} 13. Rfc1 {[%emt 0:00:02]} Bg6 {[%emt 0:00:06]} 14. c4 {[%emt 0:00:21]} Nf6 {[%emt 0:00:57]} 15. a3 {[%emt 0:00:01]} Rfc8 {[%emt 0:00:06]} 16. Nb3 {[%emt 0:00:13]} cxd4 {[%emt 0:00:16]} 17. Nbxd4 {[%emt 0:00:06]} Nxd4 {[%emt 0:00:01]} 18. Nxd4 {[%emt 0:00:06]} h6 {[%emt 0:00:06]} 19. h3 {[%emt 0:00:07]} Bc5 {[%emt 0:00:06]} 20. Nf3 {[%emt 0:00:06]} Bd3 {[%emt 0:00:02]} 21. Ne5 {[%emt 0:00:02]} dxc4 {[%emt 0:00:01]} 22. Nxd3 {[%emt 0:00:07]} cxd3 {[%emt 0:00:01]} 23. Bxd3 {[%emt 0:00:01]} Nd5 {[%emt 0:00:01]} 24. Bg3 {[%emt 0:00:13]} Be7 {[%emt 0:00:05]} 25. e4 {[%emt 0:00:09]} Rxc1+ {[%emt 0:00:04]} 26. Rxc1 {[%emt 0:00:01]} Bg5 {[%emt 0:00:00]} 27. Rc4 {[%emt 0:00:16]} Nf4 {[%emt 0:00:04]} 28. Bf1 {[%emt 0:00:01]} e5 {[%emt 0:00:00]} 29. Rc7 {[%emt 0:00:14]} Rb8 {[%emt 0:00:04]} 30. Bc4 {[%emt 0:00:01]} Rf8 {[%emt 0:00:03]} 31. Rxb7 {[%emt 0:00:03]} Rc8 {[%emt 0:00:01]} 32. b3 {[%emt 0:00:05]} Kh7 {[%emt 0:00:03]} 33. Rxb6 {[%emt 0:00:09]} Rd8 {[%emt 0:00:01]} 34. a4 {[%emt 0:00:04]} Rd1+ {[%emt 0:00:03]} 35. Kh2 {[%emt 0:00:01]} Ra1 {[%emt 0:00:02]} 36. Bxf7 {[%emt 0:00:07]} g6 {[%emt 0:00:03]} 37. Rb7 {[%emt 0:00:03]} Bd8 {[%emt 0:00:00]} 38. Bd5+ {[%emt 0:00:04] Ne2} 1-0

[Event "RUS-ch Men Blitz 2019"]
[Site "Sochi"]
[Date "2019.10.17"]
[Round "4.18"]
[White "Lysyj, Igor"]
[Black "Musalov, Ruslan"]
[Result "1-0"]
[ECO "E06"]
[WhiteElo "2596"]
[BlackElo "2348"]
[Annotator "ChessBase"]
[PlyCount "67"]
[EventDate "2019.10.17"]
[EventType "swiss"]
[EventCountry "RUS"]
[SourceTitle "playchess.com"]
[Source "ChessBase"]
[SourceQuality "1"]
[TimeControl "180+2"]

1. d4 {[%emt 0:00:00]} d5 {[%emt 0:00:00]} 2. c4 {[%emt 0:00:01]} e6 {[%emt 0:00:00]} 3. Nf3 {[%emt 0:00:01]} Nf6 {[%emt 0:00:01]} 4. g3 {[%emt 0:00:01]} Be7 {[%emt 0:00:24]} 5. Bg2 {[%emt 0:00:01]} O-O {[%emt 0:00:11]} 6. O-O {[%emt 0:00:02]} a6 {[%emt 0:00:12]} 7. Nc3 {[%emt 0:00:19]} Nbd7 {[%emt 0:00:31]} 8. Qd3 {[%emt 0:00:08]} c5 {[%emt 0:00:16]} 9. cxd5 {[%emt 0:00:08]} exd5 {[%emt 0:00:03]} 10. b3 {[%emt 0:00:17]} b5 {[%emt 0:00:09]} 11. Ne5 {[%emt 0:00:45]} c4 {[%emt 0:00:19]} 12. bxc4 {[%emt 0:00:04]} bxc4 {[%emt 0:00:11]} 13. Qc2 {[%emt 0:00:06]} Bb7 {[%emt 0:00:09]} 14. Rb1 {[%emt 0:00:03]} Qc7 {[%emt 0:00:08]} 15. Bf4 {[%emt 0:00:10]} Nxe5 {[%emt 0:00:34]} 16. Bxe5 {[%emt 0:00:29]} Qd7 {[%emt 0:00:03]} 17. Bxf6 {[%emt 0:00:03]} Bxf6 {[%emt 0:00:01]} 18. Rxb7 {[%emt 0:00:02]} Qxb7 {[%emt 0:00:01]} 19. Nxd5 {[%emt 0:00:01]} Qa7 {[%emt 0:00:21]} 20. Nxf6+ gxf6 {[%emt 0:00:01]} 21. Bxa8 {[%emt 0:00:04]} Qxa8 {[%emt 0:00:01]} 22. Qxc4 {[%emt 0:00:02]} Rc8 {[%emt 0:00:02]} 23. Qd3 {[%emt 0:00:04]} Qd5 {[%emt 0:00:02]} 24. Qxa6 {[%emt 0:00:24]} Rc2 {[%emt 0:00:01]} 25. Qxf6 {[%emt 0:00:05]} Rxe2 {[%emt 0:00:02]} 26. Rc1 {[%emt 0:00:04]} Re8 {[%emt 0:00:04]} 27. a4 {[%emt 0:00:02]} h5 {[%emt 0:00:04]} 28. h4 {[%emt 0:00:02]} Qe6 {[%emt 0:00:02]} 29. Qxe6 {[%emt 0:00:02]} fxe6 {[%emt 0:00:01]} 30. Ra1 {[%emt 0:00:01]} Rd8 {[%emt 0:00:01]} 31. a5 {[%emt 0:00:01]} Rxd4 {[%emt 0:00:01]} 32. a6 {[%emt 0:00:00]} Rd8 {[%emt 0:00:01]} 33. a7 {[%emt 0:00:01]} Ra8 {[%emt 0:00:00]} 34. Kg2 {[%emt 0:00:01]} 1-0

[Event "RUS-ch Men Blitz 2019"]
[Site "Sochi"]
[Date "2019.10.17"]
[Round "4.19"]
[White "Timofeev, Artyom"]
[Black "Gabitov, Ruslan"]
[Result "1-0"]
[ECO "A10"]
[WhiteElo "2595"]
[BlackElo "2172"]
[Annotator "ChessBase"]
[PlyCount "73"]
[EventDate "2019.10.17"]
[EventType "swiss"]
[EventCountry "RUS"]
[SourceTitle "playchess.com"]
[Source "ChessBase"]
[SourceQuality "1"]
[TimeControl "180+2"]

1. c4 {[%emt 0:00:00]} g6 {[%emt 0:00:01]} 2. e3 {[%emt 0:00:01]} Bg7 {[%emt 0:00:01]} 3. Be2 {[%emt 0:00:01]} d6 {[%emt 0:00:04]} 4. h4 {[%emt 0:00:02]} h5 {[%emt 0:00:14]} 5. Nf3 {[%emt 0:00:01]} Nc6 {[%emt 0:00:02]} 6. Nc3 {[%emt 0:00:04]} Bg4 {[%emt 0:00:02]} 7. d4 {[%emt 0:00:02]} Nf6 {[%emt 0:00:08]} 8. d5 {[%emt 0:00:04]} Bxf3 {[%emt 0:00:21]} 9. Bxf3 {[%emt 0:00:02]} Ne5 {[%emt 0:00:00]} 10. Be2 {[%emt 0:00:02]} c6 {[%emt 0:00:14]} 11. dxc6 {[%emt 0:00:02]} bxc6 {[%emt 0:00:06]} 12. O-O {[%emt 0:00:07]} O-O {[%emt 0:00:03]} 13. e4 {[%emt 0:00:09]} Rb8 {[%emt 0:00:23]} 14. Qc2 {[%emt 0:00:06]} c5 {[%emt 0:00:03]} 15. Rb1 {[%emt 0:00:09]} Nc6 {[%emt 0:00:01]} 16. Be3 {[%emt 0:00:14]} Nd7 {[%emt 0:00:07]} 17. Rfe1 {[%emt 0:00:21]} Nd4 {[%emt 0:00:06]} 18. Qd1 {[%emt 0:00:02]} Nxe2+ {[%emt 0:00:16]} 19. Qxe2 {[%emt 0:00:05]} Bxc3 {[%emt 0:00:31]} 20. bxc3 {[%emt 0:00:01]} Qa5 {[%emt 0:00:01]} 21. Rbc1 {[%emt 0:00:13]} Ne5 {[%emt 0:00:01]} 22. Bg5 {[%emt 0:00:06]} Rfe8 {[%emt 0:00:08]} 23. Bf4 {[%emt 0:00:05]} Qa4 {[%emt 0:00:12]} 24. Bxe5 dxe5 25. Red1 {[%emt 0:00:05]} Red8 {[%emt 0:00:09]} 26. Rd5 {[%emt 0:00:02]} Qa3 {[%emt 0:00:11]} 27. Rc2 {[%emt 0:00:06]} Rxd5 {[%emt 0:00:19]} 28. exd5 {[%emt 0:00:02]} Qa4 {[%emt 0:00:03]} 29. Rd2 {[%emt 0:00:05]} Qa3 {[%emt 0:00:02]} 30. Qxe5 {[%emt 0:00:33]} Qc1+ {[%emt 0:00:03]} 31. Kh2 {[%emt 0:00:01]} Qxd2 {[%emt 0:00:05]} 32. Qxb8+ {[%emt 0:00:01]} Kh7 {[%emt 0:00:01]} 33. Qg3 {[%emt 0:00:11]} Qe2 {[%emt 0:00:03]} 34. Qf4 {[%emt 0:00:02]} Kg7 {[%emt 0:00:03]} 35. f3 {[%emt 0:00:12]} Qxa2 {[%emt 0:00:02]} 36. Qe5+ {[%emt 0:00:02]} Kf8 {[%emt 0:00:00]} 37. Qh8# {[%emt 0:00:01]} 1-0

[Event "RUS-ch Men Blitz 2019"]
[Site "Sochi"]
[Date "2019.10.17"]
[Round "4.20"]
[White "Kokarev, Dmitry"]
[Black "Kozak, Alexander"]
[Result "1-0"]
[ECO "B15"]
[WhiteElo "2593"]
[BlackElo "2230"]
[Annotator "ChessBase"]
[PlyCount "109"]
[EventDate "2019.10.17"]
[EventType "swiss"]
[EventCountry "RUS"]
[SourceTitle "playchess.com"]
[Source "ChessBase"]
[SourceQuality "1"]
[TimeControl "180+2"]

1. e4 {[%emt 0:00:00]} c6 {[%emt 0:00:00]} 2. d4 {[%emt 0:00:03]} d5 {[%emt 0:00:00]} 3. Nc3 {[%emt 0:00:01]} g6 {[%emt 0:00:00]} 4. h3 {[%emt 0:00:05]} Bg7 {[%emt 0:00:00]} 5. Nf3 {[%emt 0:00:01]} Nh6 {[%emt 0:00:01]} 6. Bf4 {[%emt 0:00:05]} O-O {[%emt 0:00:03]} 7. Qd2 {[%emt 0:00:04]} dxe4 {[%emt 0:00:01]} 8. Nxe4 {[%emt 0:00:02]} Nf5 {[%emt 0:00:01]} 9. c3 {[%emt 0:00:01]} Nd6 {[%emt 0:00:26]} 10. Nc5 {[%emt 0:00:21]} Nd7 {[%emt 0:00:10]} 11. Nxd7 {[%emt 0:00:12]} Bxd7 {[%emt 0:00:02]} 12. Bh6 {[%emt 0:00:07]} Bf5 {[%emt 0:00:33]} 13. Bxg7 {[%emt 0:00:31]} Kxg7 {[%emt 0:00:01]} 14. Be2 {[%emt 0:00:08]} Ne4 {[%emt 0:00:50]} 15. Qe3 {[%emt 0:00:08]} Nf6 {[%emt 0:00:10]} 16. Ne5 {[%emt 0:00:11]} Rc8 {[%emt 0:00:11]} 17. O-O {[%emt 0:00:11]} Qd6 {[%emt 0:00:08]} 18. b4 {[%emt 0:00:08]} Rfd8 {[%emt 0:00:26]} 19. a3 {[%emt 0:00:17]} b6 {[%emt 0:00:03]} 20. Rfd1 {[%emt 0:00:06]} Qc7 {[%emt 0:00:07]} 21. Bc4 {[%emt 0:00:04]} Nd5 {[%emt 0:00:02]} 22. Qe1 {[%emt 0:00:20]} Be6 {[%emt 0:00:11]} 23. Bf1 {[%emt 0:00:07]} Nf6 {[%emt 0:00:04]} 24. c4 {[%emt 0:00:05]} h5 {[%emt 0:00:01]} 25. Rac1 {[%emt 0:00:02]} a5 {[%emt 0:00:01]} 26. d5 {[%emt 0:00:01]} Bd7 {[%emt 0:00:04]} 27. dxc6 {[%emt 0:00:07]} Bxc6 {[%emt 0:00:01]} 28. Nxc6 {[%emt 0:00:04]} Qxc6 {[%emt 0:00:01]} 29. Qxe7 {[%emt 0:00:02]} Rxd1 {[%emt 0:00:04]} 30. Rxd1 axb4 {[%emt 0:00:01]} 31. axb4 {[%emt 0:00:02]} Re8 {[%emt 0:00:03]} 32. Qd6 {[%emt 0:00:02]} Qa4 {[%emt 0:00:00]} 33. Rc1 {[%emt 0:00:12]} Qa3 {[%emt 0:00:01]} 34. Qd2 {[%emt 0:00:02]} Ne4 {[%emt 0:00:03]} 35. Qd4+ {[%emt 0:00:01]} Nf6 {[%emt 0:00:03]} 36. Qc3 {[%emt 0:00:01]} Qxc3 {[%emt 0:00:02]} 37. Rxc3 {[%emt 0:00:01]} Re1 {[%emt 0:00:00]} 38. f3 {[%emt 0:00:12]} h4 {[%emt 0:00:02]} 39. Kf2 {[%emt 0:00:01]} Rb1 {[%emt 0:00:00]} 40. b5 {[%emt 0:00:01]} Nd7 {[%emt 0:00:02]} 41. Rd3 {[%emt 0:00:01]} Nc5 {[%emt 0:00:05]} 42. Rd6 {[%emt 0:00:01]} Na4 {[%emt 0:00:01]} 43. Bd3 {[%emt 0:00:02]} Rb2+ {[%emt 0:00:02]} 44. Kg1 {[%emt 0:00:01]} Nc5 {[%emt 0:00:01]} 45. Be4 {[%emt 0:00:01]} Na4 {[%emt 0:00:01]} 46. Rd7 {[%emt 0:00:02]} Nc3 {[%emt 0:00:03]} 47. Bd5 {[%emt 0:00:03]} Ne2+ {[%emt 0:00:01]} 48. Kf2 {[%emt 0:00:01]} Nf4+ {[%emt 0:00:02]} 49. Ke3 {[%emt 0:00:01]} Nxg2+ {[%emt 0:00:01]} 50. Kd4 {[%emt 0:00:01]} Ne1 {[%emt 0:00:02]} 51. Rxf7+ {[%emt 0:00:01]} Kh6 {[%emt 0:00:01]} 52. Be4 {[%emt 0:00:02]} Ng2 {[%emt 0:00:06]} 53. Rf6 {[%emt 0:00:01]} Kg5 {[%emt 0:00:01]} 54. Rxg6+ {[%emt 0:00:02]} Kf4 {[%emt 0:00:02]} 55. Rg4# {[%emt 0:00:02]} 1-0